Cogmind - Beta 14 @@@ ROGUE MODE // 2024.10.10 @ 00:07:50 Player: Gabe+Kate4EVR Result: Destroyed by G-67 Veteran with Field Laser Performance ------------- Evolutions (7) 3500 Regions Visited (15) 3000 Robots Destroyed (15) 75 Value Destroyed (482) 482 Prototype IDs (5) 100 Alien Tech Used (0) 0 Bonus (988) 988 TOTAL SCORE: 8145 Bonus ------- Pacifist 470 High Alert Combat Kills 18 Entered DSFs 500 Cogmind --------- Core Integrity 0/1300 Matter 26/300 Energy 65/100 System Corruption 0% Temperature Cool (0) Movement Flying (30) Location -3/Armory Parts ------- > --- POWER (2) -------- (None) > --- PROPULSION (8) --- Improved Surge Thruster > --- UTILITY (9) ------ (None) > --- WEAPON (2) ------- (None) > --- INVENTORY (5) ---- Advanced Sensor Array Experimental Focal Shield Plasma Cutter Great Maul Peak State ------------ > --- POWER ------------ Light Antimatter Reactor Light Particle Reactor > --- PROPULSION ------- Improved VTOL Module Field Propulsion Array Q-thruster Q-thruster Q-thruster Q-thruster Q-thruster > --- UTILITY ---------- Experimental Thermal Generator Small Storage Unit Advanced Weight Redist. System Advanced Visual Processing Unit Advanced Signal Interpreter 0b10 Decoder Chip [Scout] Advanced Reaction Control System Experimental Focal Shield Advanced Thermal Shield > --- WEAPON ----------- Chainsword > --- INVENTORY -------- Improved Fusion Compressor Power Amplifier Improved Coolant Injector Nanoactuators Focal Shield Rocket Launcher Plasma Cutter Great Maul [Rating: 129] Favorites ----------- Power Light Ion Engine Engine Light Ion Engine Power Core Neutrino Core Reactor Light Particle Reactor Propulsion Improved VTOL Module Treads Advanced Medium Treads Leg Aluminum Leg Flight Unit Improved VTOL Module Utility Small Storage Unit Device Power Amplifier Storage Small Storage Unit Processor 0b10 Decoder Chip [Scout] Hackware System Shield Weapon Chainsword Energy Gun Improved Arc Projector Ballistic Gun Assault Rifle Launcher Advanced EMP Blaster Special Weapon Improved Plasma Cutter Impact Weapon Great Maul Slashing Weapon Chainsword Build | -11 -10 -9 -9 -8 -8 -7 -7 -6 -6 -6 -5 -5 -4 -3 -3 ------- Run | Yrd Mat Mat Min Mat Sto Fac DSF Fac Low Low Fac Ext Fac Res Arm Slots Evolved 14 | . . 2 . 2 . 2 . 2 . . 2 . 2 2 . Power 1 | . . . . . . 1 . . . . . . . . . Propulsion 6 | . . 2 . 1 . 1 . 2 . . . . . . . Utility 7 | . . . . 1 . . . . . . 2 . 2 2 . Weapon . | . . . . . . . . . . . . . . . . Parts Attached 98 | 6 2 2 . . 11 2 1 9 6 . 6 2 25 7 19 Power 14 | 1 . . . . . . . 1 1 . . . 5 3 3 Engine 4 | 1 . . . . . . . . . . . . 2 1 . Core 6 | . . . . . . . . 1 1 . . . 3 . 1 Reactor 4 | . . . . . . . . . . . . . . 2 2 Propulsion 42 | 2 2 2 . . 5 2 . 5 3 . 1 . 8 1 11 Treads 1 | . . . . . . . . . . . . . 1 . . Leg 2 | 2 . . . . . . . . . . . . . . . Wheel . | . . . . . . . . . . . . . . . . Hover . | . . . . . . . . . . . . . . . . Flight 39 | . 2 2 . . 5 2 . 5 3 . 1 . 7 1 11 Utility 29 | 1 . . . . 4 . . 3 1 . 2 1 10 3 4 Device 21 | . . . . . 2 . . 3 . . 2 . 8 3 3 Storage 3 | 1 . . . . . . . . . . . 1 . . 1 Processor 4 | . . . . . 1 . . . 1 . . . 2 . . Hackware 1 | . . . . . 1 . . . . . . . . . . Protection . | . . . . . . . . . . . . . . . . Artifact . | . . . . . . . . . . . . . . . . Weapon 13 | 2 . . . . 2 . 1 . 1 . 3 1 2 . 1 Energy Gun 1 | . . . . . . . . . . . . . 1 . . Energy Cannon . | . . . . . . . . . . . . . . . . Ballistic Gun 2 | 2 . . . . . . . . . . . . . . . Ballistic Cannon . | . . . . . . . . . . . . . . . . Launcher 5 | . . . . . 2 . 1 . . . . . 1 . 1 Special Weapon 3 | . . . . . . . . . . . 3 . . . . Impact Weapon 1 | . . . . . . . . . 1 . . . . . . Slashing Weapon 1 | . . . . . . . . . . . . 1 . . . Piercing Weapon . | . . . . . . . . . . . . . . . . Special Melee Weapon . | . . . . . . . . . . . . . . . . Unidentified Prototypes 5 | . . . . . 2 . . . . . . 1 . 1 1 Parts Lost 40 | . . . . . 1 . . . 8 . . 1 7 2 21 Power 8 | . . . . . . . . . 2 . . 1 1 . 4 Propulsion 19 | . . . . . . . . . 4 . . . 3 1 11 Utility 8 | . . . . . . . . . . . . . 3 1 4 Weapon 5 | . . . . . 1 . . . 2 . . . . . 2 Highest Loss Streak 21 | . . . . . 1 . . . 5 . . 1 4 1 21 To Critical Strikes . | . . . . . . . . . . . . . . . . Average Slot Usage (%) 77 | . 80 . 66 54 73 84 88 96 67 66 80 83 78 80 74 Engine 2 | . 14 . 11 9 9 7 7 6 . . . . . . . Core 2 | . . . . . . . . 2 2 6 5 5 4 3 . Reactor 1 | . . . . . . . . . . . . . . 4 7 Flight 38 | . 9 . 44 36 44 46 46 53 40 40 40 41 33 29 26 Device 12 | . . . . . 6 7 7 8 11 6 17 14 12 16 18 Storage 5 | . 14 . 11 9 9 7 7 6 6 6 5 6 5 4 3 Processor 5 | . . . . . . . . . 1 6 5 5 13 14 12 Launcher 2 | . . . . . 3 7 11 13 1 . . . . . . Slashing Weapon 1 | . . . . . . . . . . . . 2 5 4 3 Peak Build Rating 129 | 6 8 10 10 10 33 37 39 53 49 39 65 72 83 109 129 Average Rating 55 | 4 6 9 10 10 25 36 37 47 34 39 62 64 68 94 99 On Entrance 36 | . 6 7 10 10 10 33 37 39 49 39 39 64 58 83 103 Naked Turns 12 | . . . . . . . . . . . . . . . 12 Heaviest Build 48 | 12 12 8 8 8 16 15 19 26 26 20 26 29 27 43 48 Greatest Support 69 | 20 20 16 16 16 25 30 30 38 37 29 42 29 46 58 69 Greatest Overweight (x) 2 | . 2 . . . . . . . 1 . . . . . 1 Average Overweight (x) . | . . . . . . . . . . . . . . . . Largest Inventory Capacity 10 | 8 8 8 8 8 8 8 8 8 8 8 8 8 8 8 10 Average Capacity 8 | 7 8 8 8 8 8 8 8 8 8 8 8 8 8 8 8 Most Carried 10 | 2 8 7 8 8 8 7 8 8 8 8 8 8 8 8 10 Average Carried 7 | . 3 6 7 8 7 7 7 7 7 8 7 7 7 7 8 Final Capacity 8 | 8 8 8 8 8 8 8 8 8 8 8 8 8 8 8 5 Final Carried 8 | 2 8 6 8 8 8 7 8 8 8 8 8 8 8 8 4 Class Distribution -------------------- 64% | Sprinter 16% | Scavenger-Sprinter 13% | Mutant 4% | Scout Dominant Class ---------------- Mutant | -10/Materials Mutant | -9/Materials Sprinter | -9/Mines Sprinter | -8/Materials Sprinter | -8/Storage Sprinter | -7/Factory Sprinter | -7/DSF Sprinter | -6/Factory Sprinter | -6/Lower Caves Sprinter | -6/Lower Caves Sprinter | -5/Factory Sprinter | -5/Extension Scavenger-Sprinter | -4/Factory Scavenger-Sprinter | -3/Research Mutant | -3/Armory Resources | -11 -10 -9 -9 -8 -8 -7 -7 -6 -6 -6 -5 -5 -4 -3 -3 ----------- Run | Yrd Mat Mat Min Mat Sto Fac DSF Fac Low Low Fac Ext Fac Res Arm Matter Collected 900 | 210 50 . 40 . 140 . . . 263 . . 80 107 . 10 Remotely . | . . . . . . . . . . . . . . . . Salvage Created 1470 | . . . . . 13 . . . 1082 . . . 329 . 46 Parts 25 | . . . . . 3 . . . 1 . . . 16 . 5 Haulers Intercepted . | . . . . . . . . . . . . . . . . Recyclers Shooed . | . . . . . . . . . . . . . . . . Parts Field Recycled . | . . . . . . . . . . . . . . . . Retrieved Matter . | . . . . . . . . . . . . . . . . Parts Self-Destructed 1 | . . . . . . . . . 1 . . . . . . Prevented . | . . . . . . . . . . . . . . . . Kills | -11 -10 -9 -9 -8 -8 -7 -7 -6 -6 -6 -5 -5 -4 -3 -3 ------- Run | Yrd Mat Mat Min Mat Sto Fac DSF Fac Low Low Fac Ext Fac Res Arm Combat Hostiles Destroyed 11 | . . . . . 2 . . . 2 . . . 5 . 2 Melee 1 | . . . . . . . . . . . . . 1 . . AOE 10 | . . . . . 2 . . . 2 . . . 4 . 2 Classes Destroyed 6 | . . . . . 1 . . . 1 . . . 3 . 1 Builder 1 | . . . . . . . . . . . . . 1 . . Recycler 2 | . . . . . . . . . . . . . 2 . . Watcher 1 | . . . . . . . . . . . . . 1 . . Swarmer 8 | . . . . . 2 . . . . . . . 5 . 1 Cutter 1 | . . . . . . . . . . . . . . . 1 Grunt 2 | . . . . . . . . . 2 . . . . . . Best Kill Streak 8 | . . . . . 2 . . . 2 . . . 8 . 2 Combat Bots Only 4 | . . . . . 2 . . . 2 . . . 4 . 2 Max Kills in Single Turn 4 | . . . . . 2 . . . 1 . . . 4 . 2 Gunslinging . | . . . . . . . . . . . . . . . . Exploded 4 | . . . . . 2 . . . 1 . . . 4 . 2 Melee 1 | . . . . . . . . . . . . . 1 . . Uniques/NPCs Destroyed . | . . . . . . . . . . . . . . . . Combat | -11 -10 -9 -9 -8 -8 -7 -7 -6 -6 -6 -5 -5 -4 -3 -3 -------- Run | Yrd Mat Mat Min Mat Sto Fac DSF Fac Low Low Fac Ext Fac Res Arm Hostile Shots Fired 440 | . 7 . 4 4 12 . 19 40 51 4 2 12 77 12 196 Missed 255 | . 5 . 3 2 7 . 15 29 23 1 1 8 53 8 100 Damage Taken 3932 | . 19 . 15 29 86 . 27 115 533 53 19 107 427 106 2396 Core 1665 | . . . . 29 . . . 35 204 18 . . 67 19 1293 Absorbed by Shields 57 | . . . . . . . 12 . . . . . . . 45 Ignored by Resistances 53 | . . . . . . . . . . . . . . 35 18 Core Remaining (%) 94 | 100 100 . 100 . 94 . 100 . . 69 . 100 94 . . Volleys Fired 15 | . . . . . 4 . . . 8 . . . 2 . 1 Largest 1 | . . . . . 1 . . . 1 . . . 1 . 1 Hottest 36 | . . . . . 36 . . . 33 . . . 33 . 33 Shots Fired 15 | . . . . . 4 . . . 8 . . . 2 . 1 Gun . | . . . . . . . . . . . . . . . . Cannon . | . . . . . . . . . . . . . . . . Launcher 15 | . . . . . 4 . . . 8 . . . 2 . 1 Special . | . . . . . . . . . . . . . . . . Kinetic . | . . . . . . . . . . . . . . . . Thermal . | . . . . . . . . . . . . . . . . Explosive 14 | . . . . . 3 . . . 8 . . . 2 . 1 Electromagnetic 1 | . . . . . 1 . . . . . . . . . . Robot Hit Streak 2 | . . . . . 2 . . . 2 . . . . . . Robot Miss Streak 1 | . . . . . 1 . . . 1 . . . . . 1 Penetration Max . | . . . . . . . . . . . . . . . . Secondary Targets . | . . . . . . . . . . . . . . . . Shots Hit Robots 32 | . . . . . 2 . . . 20 . . . 10 . . Core Hits 34 | . . . . . 3 . . . 11 . . . 9 . 11 Critical Kills . | . . . . . . . . . . . . . . . . Critical Parts Destroyed 4 | . . . . . . . . . 4 . . . . . . Critical Strikes 5 | . . . . . . . . . 4 . . . 1 . . Smash 4 | . . . . . . . . . 4 . . . . . . Sever 1 | . . . . . . . . . . . . . 1 . . Melee Attacks 35 | . . . . . . . . . 16 . . 1 13 . 5 Impact 16 | . . . . . . . . . 16 . . . . . . Slashing 19 | . . . . . . . . . . . . 1 13 . 5 Piercing . | . . . . . . . . . . . . . . . . Sneak Attacks 4 | . . . . . . . . . . . . . 4 . . Combat Hostiles . | . . . . . . . . . . . . . . . . Follow-up Attacks . | . . . . . . . . . . . . . . . . Damage Inflicted 3269 | . . . . . 108 . . . 1983 . . . 832 . 346 Guns . | . . . . . . . . . . . . . . . . Cannons . | . . . . . . . . . . . . . . . . Explosions 1040 | . . . . . 108 . . . 320 . . . 275 . 337 Melee 2220 | . . . . . . . . . 1663 . . . 557 . . Ramming 9 | . . . . . . . . . . . . . . . 9 Kinetic . | . . . . . . . . . . . . . . . . Thermal . | . . . . . . . . . . . . . . . . Explosive 1040 | . . . . . 108 . . . 320 . . . 275 . 337 Electromagnetic . | . . . . . . . . . . . . . . . . Impact 1663 | . . . . . . . . . 1663 . . . . . . Slashing 557 | . . . . . . . . . . . . . 557 . . Piercing . | . . . . . . . . . . . . . . . . Highest Corruption . | . . . . . . . . . . . . . . . . Average Corruption . | . . . . . . . . . . . . . . . . Corruption Purged . | . . . . . . . . . . . . . . . . Corruption Blocked . | . . . . . . . . . . . . . . . . Overload Shots . | . . . . . . . . . . . . . . . . Overflow Damage 1298 | . . . . . 9 . . . 1161 . . . 97 . 31 Projectiles 42 | . . . . . . . . . 42 . . . . . . Explosions 40 | . . . . . 9 . . . . . . . . . 31 Melee 1216 | . . . . . . . . . 1119 . . . 97 . . Knockbacks 2 | . . . . . . . . . 2 . . . . . . Impact 1 | . . . . . . . . . 1 . . . . . . Kinetic . | . . . . . . . . . . . . . . . . Secondary 1 | . . . . . . . . . 1 . . . . . . Self-Inflicted Damage 65 | . . . . . 20 . . . . . . . . . 45 Shots 2 | . . . . . 1 . . . . . . . . . 1 Rammed 2 | . . . . . . . . . . . . . . . 2 Targets Rammed 2 | . . . . . . . . . . . . . . . 2 Kicked . | . . . . . . . . . . . . . . . . Crushed . | . . . . . . . . . . . . . . . . Highest Temperature 552 | . . . 24 . 17 42 . 552 326 131 371 . 71 246 479 Average Temperature 117 | . . . 18 . 8 24 . 137 138 75 174 . 17 68 172 Received Heat Transfer 453 | . 9 . 27 9 18 . . 48 153 18 . 12 9 9 141 Effects 23 | . . . . . . . . 11 . . 2 . . . 10 Shutdowns 7 | . . . . . . . . 3 . . . . . . 4 Energy Bleed 1 | . . . . . . . . . . . . . . . 1 Interference 1 | . . . . . . . . 1 . . . . . . . Short Circuit 4 | . . . . . . . . 1 . . 2 . . . 1 Damage (minor) 2 | . . . . . . . . 2 . . . . . . . Damage (major) 8 | . . . . . . . . 4 . . . . . . 4 Siege Activations . | . . . . . . . . . . . . . . . . Robots Corrupted . | . . . . . . . . . . . . . . . . Combat Hostiles . | . . . . . . . . . . . . . . . . Parts Fried 2 | . . . . . . . . . 2 . . . . . . Impact Corruptions 31 | . . . . . . . . . 31 . . . . . . Robots Melted . | . . . . . . . . . . . . . . . . Combat Hostiles . | . . . . . . . . . . . . . . . . Parts Melted . | . . . . . . . . . . . . . . . . Heat Transferred . | . . . . . . . . . . . . . . . . Parts Sabotaged . | . . . . . . . . . . . . . . . . Parts Stolen . | . . . . . . . . . . . . . . . . Parts Stripped . | . . . . . . . . . . . . . . . . Power Chain Reactions . | . . . . . . . . . . . . . . . . Alert | -11 -10 -9 -9 -8 -8 -7 -7 -6 -6 -6 -5 -5 -4 -3 -3 ------- Run | Yrd Mat Mat Min Mat Sto Fac DSF Fac Low Low Fac Ext Fac Res Arm Peak Influence 496 | . 24 9 18 36 229 103 75 224 . . 95 91 496 315 495 Initial 260 | . . 9 3 6 14 103 75 39 . . 95 46 42 260 165 Average 150 | . 7 9 6 10 94 103 75 79 . . 95 69 253 276 273 Maximum Alert Level 2 | . . . . . 1 . . 1 . . . . 2 1 2 Low Security (%) 66 | 100 100 100 100 100 85 100 100 91 . . 100 100 31 . 34 Level 1 29 | . . . . . 14 . . 8 . . . . 52 100 57 Level 2 3 | . . . . . . . . . . . . . 15 . 8 Level 3 . | . . . . . . . . . . . . . . . . Level 4 . | . . . . . . . . . . . . . . . . Level 5 . | . . . . . . . . . . . . . . . . High Security . | . . . . . . . . . . . . . . . . Max Security . | . . . . . . . . . . . . . . . . Squads Dispatched 12 | . . . . . 2 . . . . . 1 . 4 2 3 Investigation 6 | . . . . . . . . . . . . . 3 1 2 Extermination 2 | . . . . . . . . . . . 1 . 1 . . Reinforcement 4 | . . . . . 2 . . . . . . . . 1 1 Assault . | . . . . . . . . . . . . . . . . Garrison . | . . . . . . . . . . . . . . . . Intercept . | . . . . . . . . . . . . . . . . Searches Triggered . | . . . . . . . . . . . . . . . . Construction Impeded 1 | . . . . . 1 . . . . . . . . . . Haulers Reinforced . | . . . . . . . . . . . . . . . . Active Scanning Responses . | . . . . . . . . . . . . . . . . Cargo Convoy Interrupts . | . . . . . . . . . . . . . . . . Stealth | -11 -10 -9 -9 -8 -8 -7 -7 -6 -6 -6 -5 -5 -4 -3 -3 --------- Run | Yrd Mat Mat Min Mat Sto Fac DSF Fac Low Low Fac Ext Fac Res Arm Distress Signals 1 | . . . . . . . . . . . . . 1 . . Communications Jammed . | . . . . . . . . . . . . . . . . Distress Signals . | . . . . . . . . . . . . . . . . Times Spotted 131 | . 5 . 2 6 15 . 3 10 8 8 . 7 22 7 38 Peak Tracking Total 22 | . 5 . 2 8 10 . 2 11 4 11 1 9 8 4 22 Tactical Retreats 19 | . . . . . 1 . . 4 4 . . . 2 3 5 Traps | -11 -10 -9 -9 -8 -8 -7 -7 -6 -6 -6 -5 -5 -4 -3 -3 ------- Run | Yrd Mat Mat Min Mat Sto Fac DSF Fac Low Low Fac Ext Fac Res Arm Traps Triggered 6 | . . . . . . . 3 . . . . . 1 1 1 Indirectly . | . . . . . . . . . . . . . . . . Trap Hack Attempts . | . . . . . . . . . . . . . . . . Triggered . | . . . . . . . . . . . . . . . . Disarmed . | . . . . . . . . . . . . . . . . Reprogrammed . | . . . . . . . . . . . . . . . . Reused . | . . . . . . . . . . . . . . . . Traps Extracted . | . . . . . . . . . . . . . . . . Installed . | . . . . . . . . . . . . . . . . Triggered . | . . . . . . . . . . . . . . . . Machines | -11 -10 -9 -9 -8 -8 -7 -7 -6 -6 -6 -5 -5 -4 -3 -3 ---------- Run | Yrd Mat Mat Min Mat Sto Fac DSF Fac Low Low Fac Ext Fac Res Arm Machines Disabled 9 | . . . . . 1 . . . . . . 1 4 . 3 Max in Single Turn 4 | . . . . . 1 . . . . . . 1 4 . 1 Machines Repaired . | . . . . . . . . . . . . . . . . Machines Dismantled . | . . . . . . . . . . . . . . . . Machines Sabotaged . | . . . . . . . . . . . . . . . . Overloaded Fab Kills . | . . . . . . . . . . . . . . . . Hacking | -11 -10 -9 -9 -8 -8 -7 -7 -6 -6 -6 -5 -5 -4 -3 -3 --------- Run | Yrd Mat Mat Min Mat Sto Fac DSF Fac Low Low Fac Ext Fac Res Arm Machines Accessed 17 | . 1 . . 1 2 1 . 2 . . . 1 5 1 3 Terminals 15 | . 1 . . 1 2 1 . 2 . . . 1 4 1 2 Fabricators . | . . . . . . . . . . . . . . . . Repair Stations 2 | . . . . . . . . . . . . . 1 . 1 Recycling Units . | . . . . . . . . . . . . . . . . Scanalyzers . | . . . . . . . . . . . . . . . . Garrison Access . | . . . . . . . . . . . . . . . . Total Hacks 43 | . 2 . . 2 3 3 . 2 . . . 2 15 3 11 Successful 13 | . 1 . . 1 2 1 . 1 . . . 1 3 . 3 Failed 30 | . 1 . . 1 1 2 . 1 . . . 1 12 3 8 Catastrophic 5 | . . . . . . . . 1 . . . . 2 1 1 Database Lockouts . | . . . . . . . . . . . . . . . . Manual 11 | . 2 . . . . . . 1 . . 1 . 4 3 . Terminals 31 | . 2 . . 2 3 3 . 2 . . . 2 8 3 6 Fabricators . | . . . . . . . . . . . . . . . . Repair Stations 12 | . . . . . . . . . . . . . 7 . 5 Recycling Units . | . . . . . . . . . . . . . . . . Scanalyzers . | . . . . . . . . . . . . . . . . Garrison Access . | . . . . . . . . . . . . . . . . Terminal Hacks 11 | . 1 . . 1 2 1 . 1 . . . 1 2 . 2 Record 1 | . . . . . . . . . . . . . . . 1 Open Door 4 | . . . . . 2 . . . . . . 1 . . 1 Open DSF 4 | . . . . . . 1 . 1 . . . . 2 . . Level Access Points 1 | . 1 . . . . . . . . . . . . . . Branch Access Points 1 | . . . . 1 . . . . . . . . . . . Fabricator Hacks . | . . . . . . . . . . . . . . . . Repair Station Hacks 2 | . . . . . . . . . . . . . 1 . 1 Scan Component 2 | . . . . . . . . . . . . . 1 . 1 Recycling Unit Hacks . | . . . . . . . . . . . . . . . . Scanalyzer . | . . . . . . . . . . . . . . . . Garrison Access Hacks . | . . . . . . . . . . . . . . . . Unauthorized Hacks . | . . . . . . . . . . . . . . . . Terminals . | . . . . . . . . . . . . . . . . Fabricators . | . . . . . . . . . . . . . . . . Repair Stations . | . . . . . . . . . . . . . . . . Recycling Units . | . . . . . . . . . . . . . . . . Scanalyzers . | . . . . . . . . . . . . . . . . Garrison Access . | . . . . . . . . . . . . . . . . Data Cores Recovered . | . . . . . . . . . . . . . . . . Used . | . . . . . . . . . . . . . . . . Hacking Detections 14 | . . . . 1 1 1 . 1 . . . 1 5 1 3 Full Trace Events 6 | . . . . . . . . . . . . . 3 1 2 Feedback Events . | . . . . . . . . . . . . . . . . Feedback Blocked . | . . . . . . . . . . . . . . . . Robot Schematics Acquired . | . . . . . . . . . . . . . . . . Robots Built . | . . . . . . . . . . . . . . . . Authchips . | . . . . . . . . . . . . . . . . Time . | . . . . . . . . . . . . . . . . Total Robot Build Rating . | . . . . . . . . . . . . . . . . Part Schematics Acquired . | . . . . . . . . . . . . . . . . Parts Built . | . . . . . . . . . . . . . . . . Authchips . | . . . . . . . . . . . . . . . . Time . | . . . . . . . . . . . . . . . . Total Part Build Rating . | . . . . . . . . . . . . . . . . Parts Repaired . | . . . . . . . . . . . . . . . . Time . | . . . . . . . . . . . . . . . . Parts Recycled . | . . . . . . . . . . . . . . . . Recycled Matter . | . . . . . . . . . . . . . . . . Retrieved Matter . | . . . . . . . . . . . . . . . . Retrieved Components . | . . . . . . . . . . . . . . . . Parts Scanalyzed . | . . . . . . . . . . . . . . . . Part Schematics Acquired . | . . . . . . . . . . . . . . . . Parts Damaged . | . . . . . . . . . . . . . . . . Bothacking | -11 -10 -9 -9 -8 -8 -7 -7 -6 -6 -6 -5 -5 -4 -3 -3 ------------ Run | Yrd Mat Mat Min Mat Sto Fac DSF Fac Low Low Fac Ext Fac Res Arm Used RIF Installer . | . . . . . . . . . . . . . . . . Robots Hacked . | . . . . . . . . . . . . . . . . Non-combat . | . . . . . . . . . . . . . . . . Combat . | . . . . . . . . . . . . . . . . Robot Hacks Applied . | . . . . . . . . . . . . . . . . Relay Couplers Released . | . . . . . . . . . . . . . . . . Fabnet Peak Effective % . | . . . . . . . . . . . . . . . . Robots Rewired . | . . . . . . . . . . . . . . . . Allies Hacked . | . . . . . . . . . . . . . . . . Hacks Repelled . | . . . . . . . . . . . . . . . . Allies | -11 -10 -9 -9 -8 -8 -7 -7 -6 -6 -6 -5 -5 -4 -3 -3 -------- Run | Yrd Mat Mat Min Mat Sto Fac DSF Fac Low Low Fac Ext Fac Res Arm Total Allies . | . . . . . . . . . . . . . . . . Largest Group . | . . . . . . . . . . . . . . . . Highest-Rated Group . | . . . . . . . . . . . . . . . . Highest-Rated Ally . | . . . . . . . . . . . . . . . . Total Orders . | . . . . . . . . . . . . . . . . Ally Attacks . | . . . . . . . . . . . . . . . . Total Damage . | . . . . . . . . . . . . . . . . Kills . | . . . . . . . . . . . . . . . . Allies Corrupted . | . . . . . . . . . . . . . . . . Allies Melted . | . . . . . . . . . . . . . . . . Intel | -11 -10 -9 -9 -8 -8 -7 -7 -6 -6 -6 -5 -5 -4 -3 -3 ------- Run | Yrd Mat Mat Min Mat Sto Fac DSF Fac Low Low Fac Ext Fac Res Arm Robot Analysis Total . | . . . . . . . . . . . . . . . . Derelict Logs Recovered 1 | . . . . . . . . . 1 . . . . . . Drone Launches . | . . . . . . . . . . . . . . . . Drone Recoveries . | . . . . . . . . . . . . . . . . Decoded 0b10 Intel 20 | . . . . . . . . . . . 3 1 7 4 5 Traps 11 | . . . . . . . . . . . 1 1 5 3 1 Emergency Access 8 | . . . . . . . . . . . 2 . 1 1 4 Exits 1 | . . . . . . . . . . . . . 1 . . Exploration | -11 -10 -9 -9 -8 -8 -7 -7 -6 -6 -6 -5 -5 -4 -3 -3 ------------- Run | Yrd Mat Mat Min Mat Sto Fac DSF Fac Low Low Fac Ext Fac Res Arm Turns Passed 2147 | 86 56 4 47 10 166 10 41 235 390 18 324 53 261 169 277 Spaces Moved 4096 | 66 62 8 166 40 242 37 92 358 764 89 292 208 704 347 621 Core 31 | 5 . . . . . . . . . . . . . . 26 Treads . | . . . . . . . . . . . . . . . . Legs 90 | 61 29 . . . . . . . . . . . . . . Wheels . | . . . . . . . . . . . . . . . . Hover . | . . . . . . . . . . . . . . . . Flight 3975 | . 33 8 166 40 242 37 92 358 764 89 292 208 704 347 595 Fastest Speed 14 | 50 32 26 26 26 23 20 20 14 14 20 17 20 18 19 19 Average Speed 23 | 114 78 26 26 26 23 20 20 14 21 20 18 20 22 20 27 Slowest Speed 195 | 120 195 26 26 26 26 20 20 17 101 20 20 20 40 21 114 Overloaded Moves . | . . . . . . . . . . . . . . . . Propulsion Burnouts . | . . . . . . . . . . . . . . . . Robots Hopped 30 | . 1 . . 1 . . 1 7 1 . 1 4 8 4 2 Cave-ins Triggered . | . . . . . . . . . . . . . . . . Exploration Rate (%) 26 | 5 15 1 52 7 38 1 90 13 85 14 6 28 28 9 38 Regions Visited 15 Branch Regions 6 Pre-discovered Areas 1 | . . . . . . . . . 1 . . . . . . Known Exits Taken 5 | . 1 . . 1 . 1 . . . . . . 1 1 . Unknown Exits Taken 9 | 1 . 1 1 . 1 . . 1 1 1 1 1 . . . Scrap Searched 3 | . . . . . . . . . 2 1 . . . . . Spaces Dug . | . . . . . . . . . . . . . . . . Terrain Destroyed 81 | . . . . . 10 . . . 66 . . . . . 5 Melee . | . . . . . . . . . . . . . . . . Projectile . | . . . . . . . . . . . . . . . . AOE 81 | . . . . . 10 . . . 66 . . . . . 5 Terrain Rammed . | . . . . . . . . . . . . . . . . Walls Destroyed . | . . . . . . . . . . . . . . . . Machines Disabled . | . . . . . . . . . . . . . . . . Actions | -11 -10 -9 -9 -8 -8 -7 -7 -6 -6 -6 -5 -5 -4 -3 -3 --------- Run | Yrd Mat Mat Min Mat Sto Fac DSF Fac Low Low Fac Ext Fac Res Arm Total 5145 | 73 68 9 169 38 354 38 114 532 950 88 558 213 776 439 726 Wait 810 | . . . . . 69 . 5 169 153 . 254 5 25 82 48 Move 4025 | 65 59 7 165 38 241 36 89 343 761 88 289 200 688 338 618 Hop 26 | . 1 . . . . . 1 7 1 . 1 3 7 4 1 Pick Up 39 | 2 2 . 3 . 12 . 2 2 1 . 3 . 2 1 9 Fast Attach 52 | 6 2 . . . 6 . 1 2 4 . 4 1 17 4 5 Attach 20 | . . 2 . . 1 1 . 2 2 . 2 1 3 . 6 Detach 12 | . 4 . . . 1 . . 1 2 . . 1 3 . . Swap 26 | . . . . . 4 1 . 5 . . . . 5 3 8 Drop 54 | . . . 1 . 16 . 1 1 2 . 3 1 11 3 15 Fire 15 | . . . . . 4 . . . 8 . . . 2 . 1 Melee 35 | . . . . . . . . . 16 . . 1 13 . 5 Ram 2 | . . . . . . . . . . . . . . . 2 Kick . | . . . . . . . . . . . . . . . . Crush . | . . . . . . . . . . . . . . . . Escape Stasis 27 | . . . . . . . 15 . . . . . . 4 8 Rewire . | . . . . . . . . . . . . . . . . Trap . | . . . . . . . . . . . . . . . . Miscellaneous 2 | . . . . . . . . . . . 2 . . . . Route ------- -11/Scrapyard -10/Materials (discovered 3 exits: *Mat x3) -9/Materials -9/Mines -8/Materials -8/Storage -7/Factory -7/DSF -6/Factory -6/Lower Caves -6/Lower Caves -5/Factory -5/Extension -4/Factory (discovered 2 exits: *Res / *Upp) -3/Research -3/Armory History --------- Turn | Location | Event 5 | -11/Scrapyard | Discovered new exit (range 14) 87 | -11/Scrapyard | Entered Materials 108 | -10/Materials | Identified exit to Materials 143 | -10/Materials | Entered another Materials area 143 | -9/Materials | Evolved 2 slots: Propulsion x2 145 | -9/Materials | Discovered new exit (range 8) 147 | -9/Materials | Entered Mines 150 | -9/Mines | Met a Derelict bent on vengeance 185 | -9/Mines | Discovered new exit (range 11) 194 | -9/Mines | Entered Materials 194 | -8/Materials | Evolved 2 slots: Propulsion x1, Utility x1 196 | -8/Materials | Identified exit to Storage 204 | -8/Materials | Entered Storage 299 | -8/Storage | Met 01-MTF 350 | -8/Storage | Discovered new exit (range 16) 370 | -8/Storage | Entered Factory 370 | -7/Factory | Accompanied by 1 ally (01-MTF) 370 | -7/Factory | Evolved 2 slots: Power x1, Propulsion x1 373 | -7/Factory | 01-MTF left 380 | -7/Factory | Identified exit to DSF 380 | -7/Factory | Entered DSF 408 | -7/DSF | Discovered new exit (range 15) 414 | -7/DSF | Additional patrols routed to DSF 421 | -7/DSF | Entered Factory 421 | -6/Factory | Evolved 2 slots: Propulsion x2 443 | -6/Factory | Build established: Sprinter 640 | -6/Factory | Discovered new exit (range 16) 656 | -6/Factory | Entered Lower Caves 667 | -6/Lower Caves | Spotted B-75 Beast 740 | -6/Lower Caves | Lost 3 parts (2p1w) 809 | -6/Lower Caves | Lost 5 parts (4n1w) 956 | -6/Lower Caves | Encountered a Warlord checkpoint 978 | -6/Lower Caves | Discovered new exit (range 6) 1046 | -6/Lower Caves | Entered another Lower Caves area 1064 | -6/Lower Caves | Discovered new exit (range 3) 1064 | -6/Lower Caves | Entered Factory 1064 | -5/Factory | Evolved 2 slots: Utility x2 1122 | -5/Factory | Discovered new exit (range 16) 1388 | -5/Factory | Entered Extension 1404 | -5/Extension | Spotted B-75 Beast 1439 | -5/Extension | Spotted B-75 Beast 1441 | -5/Extension | Discovered new exit (range 3) 1441 | -5/Extension | Entered Factory 1441 | -4/Factory | Evolved 2 slots: Utility x2 1617 | -4/Factory | Lost 4 parts (1p1n2u) 1626 | -4/Factory | Identified exit to Upper Caves 1640 | -4/Factory | Spotted B-86 Titan 1665 | -4/Factory | Spotted B-86 Titan 1698 | -4/Factory | Discovered new exit (range 8) 1699 | -4/Factory | Identified exit to Research 1702 | -4/Factory | Entered Research 1702 | -3/Research | Evolved 2 slots: Utility x2 1773 | -3/Research | Found Prototype Device 1773 | -3/Research | Identified Exp. Focal Shield 1800 | -3/Research | Discovered new exit (range 19) 1850 | -3/Research | Identified exit to Armory 1871 | -3/Research | Entered Armory 2131 | -3/Armory | Core integrity fell below 50% 2144 | -3/Armory | Core integrity fell below 20% 2148 | -3/Armory | Destroyed by G-67 Veteran with Field Laser Last Messages --------------- 02130_ Stasis field depleted. 02131_ Adv. Signal Interpreter severed. 02138_ Slug penetrates Wall. 02140_ Slammed into C-35 Carver. 02143_ S-43 Plague destroyed. 02143_ Destroyed Xenon Bombardment Thruster. 02143_ C-35 Carver destroyed. 02144_ Rocket Launcher destroyed. 02144_ C-35 Carver destroyed. 02145_ ALERT: Security rotation in progress. 02145_ Acquired Imp. Surge Thruster. 02146_ Compression Vault explodes. 02146_ S-43 Plague destroyed. 02147_ Acquired 10 matter. 02147_ Slug penetrates Terminal. 02147_ Penetrated by Slug. 02147_ G-67 Veteran destroyed. 02147_ Acquired Imp. Surge Thruster. 02148_ Penetrated by Slug. 02148_ Imp. Surge Thruster destroyed. Map ----- +----------------------------------------------------+ | | | | | | | | | | | ?????????????????????????????????????????????????? | | ?????????????????????????????????????????????????? | | ?????????????????????????????????????????????????? | | ?????????????????????????????????????????????????? | | ?????????????????????????????????????????????????? | | ?????????????????????????????????????????????????? | | ?????????????????????????????????????????????????? | | ?????????????????????????????????????????????????? | | ??????????????????????##?????????????????????????? | | ????????????????????### #######??????????????????? | | ???????????????????? #??????????????????? | | ??????????????????? "" #??????????????????? | | ?????????????????#?""" Y #??????????????????? | | ?????????????????# "F #??????????########? | | ?????????????????# """ =! #??????????# #? | | ?????????????????# """ =! #??????????# #? | | ?????????????????# """ #??????????# #? | | ?????????????????# #??????????# #? | | ?????????????????# #??????????# ## | | ?????????????????#! #??????????# """" # | | ?????????????????# !=@ #??????????# "??" | | ?????????????????# % % #???????#### "??" | | ??????############### g#####?####### ## "??" | | ??????# # sgY #????# # """" ! | | ??????# ? # %*[Y###### "" !! # | | ??????# """"""" s"T%! # """ !! # | | ??????# """"""" # ""[h / "F ! + | | ??????# h h #### # """ # ## | | ??????# # #??# # """ ###/##### | | ??????###########+##### ###??# # """ #???????# | | ????????????????# #???# #????# # #???????# | | ????????????????# #???# #????# # #???????# | | ????????????????# #???# #?####+##########???????# | | ????????????????# ##### #?# #?????????????? | | ????????????????# ! *### #???????????### | | ????????????????# + """ #???????????# | | ????????????????# """ ## """ ]#???????????# | | ????????????????# ""F ## """ #???????????# | | ????????????????# "" ## #???????????# | | ????????????????# """ ######+###???????????# | | ????????????????/ """ ?????????????????? | | ????????????????# ???????????????? | | ????????????????# ??????????????!### ? | | ????????????????###### ######????????????#???# ? | | ?????????????????????# #?????????????????????#?? | +----------------------------------------------------+ Best States ------------- Heat Dissipation 65 Coolant Potential 100 Energy Generation 45 Energy Capacity 815 Matter Stores 300 Matter Capacity 300 Sight Range 20 Robot Scan Range 15 Terrain Scan Density 10 Power Amplification 20 Additional Mass Support 9 Resistance: KI 30 Resistance: TH 30 Evasion (%) 77 Recoil Reduction 1 Defensive Hacking 10 Item Schematics ----------------- None Robot Schematics ------------------ None Fabricated ------------ Nothing Alien Tech Used ----------------- None Achievements -------------- None Challenges ------------ None Game ------ Seed TrackerIonBasin Manual? 0 Play Time 00:46:28 Cumulative 192.1 hours Start 2024.10.09 @ 23:20:21 End 2024.10.10 @ 00:07:50 Sessions 1 Manual Loads 0 Difficulty Rogue Special Mode None Game No. 376 Rogue 376 Adventurer 0 Explorer 0 Win Type - Total 0 Types 0/0/0/0/0/0/0/0/0 Lore% 36 Gallery% 63 Achievement% 48 Wizard Run 0 Options --------- Layout 0 ASCII 0 Keyboard 1 Movement Numpad Keybinds 0 Fullscreen 2 Font 18/X11 Map View 76x50 Zoom Use 0% Tactical HUD 1 Map Filters NONE Filters NONE Steam 1 RUN: 1f38eef2-8ec3-4fc6-af20-001d1dab3f04